fUST/lending_fUST_20250203
["ID","MTS","AMOUNT","RATE_DAILY","PERIOD"]
[351410398,1738558050660,-500.0,0.00016849,2]
[351410399,1738558050681,-500.0,0.00016849,2]
[351410400,1738558050705,-500.0,0.00016849,2]
[351410401,1738558050728,-500.0,0.00016849,2]
[351410402,1738558050750,-500.0,0.00016849,2]
[351410403,1738558050778,-547.42,0.00016849,2]
[351410404,1738558050803,-6706.79,0.00016849,2]
[351410405,1738558050833,-500.0,0.00016849,2]
[351410406,1738558050856,-500.64,0.00016849,2]
[351410407,1738558050880,-715.91,0.00016849,2]
[351410408,1738558050902,-512.64,0.00016849,2]
[351410409,1738558050926,-882.22,0.00016849,2]
[351410410,1738558050947,-507.28,0.00016849,2]
[351410411,1738558050971,-1403.3,0.00016849,2]
[351410412,1738558050995,-500.0,0.00016849,2]
[351410413,1738558051018,-747.71,0.00016849,2]
[351410414,1738558051049,-656.02,0.00016849,2]
[351410415,1738558051071,-500.0,0.00016849,2]
[351410416,1738558051094,-715.27,0.00016849,2]
[351410417,1738558051117,-500.0,0.00016849,2]
[351410418,1738558051141,-2548.64412372,0.00016849,2]
[351410419,1738558052080,-755.76587628,0.00016849,2]
[351410420,1738558052104,-2540.24,0.00016849,2]
[351410421,1738558052127,-607.39762311,0.00016849,2]
[351410422,1738558052150,-1444.36,0.00016849,2]
[351410423,1738558052174,-500.0,0.00016849,2]
[351410424,1738558052198,-1493.63,0.00016849,2]
[351410425,1738558052221,-500.0,0.00016849,2]
[351410426,1738558052245,-1791.71,0.00016849,2]
[351410427,1738558052269,-622.36,0.00016849,2]
[351410428,1738558052295,-2841.41,0.00016849,2]
[351410429,1738558052317,-714.88,0.00016849,2]
[351410430,1738558052339,-500.0,0.00016849,2]
[351410431,1738558052366,-564.73,0.00016849,2]
[351410432,1738558052388,-500.0,0.00016849,2]
[351410433,1738558052410,-228.56361098,0.00016849,2]
[351410434,1738558052449,-1705.23,0.00016849,2]
[351410435,1738558052471,-500.0,0.00016849,2]
[351410436,1738558052492,-1005.66,0.00016849,2]
[351410437,1738558052514,-500.0,0.00016849,2]
[351410438,1738558052539,-500.0,0.00016849,2]
[351410439,1738558052560,-500.0,0.00016849,2]
[351410440,1738558052581,-1163.04,0.00016849,2]
[351410441,1738558052601,-500.0,0.00016849,2]
[351410442,1738558052623,-2225.42,0.00016849,2]
[351410443,1738558052643,-500.0,0.00016849,2]
[351410444,1738558052664,-656.9,0.00016849,2]
[351410445,1738558052685,-154.4720971,0.00016959,2]
[351410446,1738558052708,-306.0,0.00016959,2]
[351410447,1738558052729,-153.0,0.00016959,2]
[351410448,1738558052748,-153.0,0.00016959,2]
[351410449,1738558052769,-153.0,0.00016959,2]
[351410450,1738558052972,-154.4720971,0.00016959,2]
[351410451,1738558053007,-154.3265055,0.00016959,2]
[351410452,1738558053032,-215.6590378,0.00016959,2]
[351410453,1738558053061,-153.0,0.00016959,2]
[351410454,1738558053083,-153.0,0.00016959,2]
[351410455,1738558053105,-154.4720971,0.00016959,2]
[351410456,1738558053128,-215.6590378,0.00016959,2]
[351410457,1738558053151,-153.0,0.00016959,2]
[351410458,1738558053174,-215.6590378,0.00016959,2]
[351410459,1738558053196,-153.0,0.00016959,2]
[351410460,1738558053219,-215.6590378,0.00016959,2]
[351410461,1738558053241,-154.4720971,0.00016959,2]
[351410462,1738558053263,-154.4720971,0.00016959,2]
[351410463,1738558053288,-215.6590378,0.00016959,2]
[351410464,1738558053309,-153.0,0.00016959,2]
[351410465,1738558053331,-215.6590378,0.00016959,2]
[351410466,1738558053352,-154.4720971,0.00016959,2]
[351410467,1738558053374,-210.8431726,0.00016959,2]
[351410468,1738558053395,-153.0,0.00016959,2]
[351410469,1738558053417,-154.4720971,0.00016959,2]
[351410470,1738558053437,-154.4720971,0.00016959,2]
[351410471,1738558053458,-153.0,0.00016959,2]
[351410472,1738558053481,-153.0,0.00016959,2]
[351410473,1738558053503,-154.4720971,0.00016959,2]
[351410474,1738558053526,-154.2758987,0.00016959,2]
[351410475,1738558053547,-153.0,0.00016959,2]
[351410476,1738558053568,-308.8951446,0.00016959,2]
[351410477,1738558053591,-215.6245758,0.00016959,2]
[351410478,1738558053614,-159.5996199,0.00016959,2]
[351410479,1738558053636,-153.0,0.00016959,2]
[351410480,1738558053658,-500.0,0.00016985,2]
[351410481,1738558053681,-169.72303154,0.00016985,2]
[351410482,1738558053706,-484.71900072,0.00016985,2]
[351410483,1738558053728,-500.0,0.00016986,2]
[351410484,1738558053750,-550.72593621,0.00016986,2]
[351410485,1738558053774,-500.0,0.00016986,2]
[351410486,1738558053803,-757.43,0.00016986,2]
[351410487,1738558053825,-500.0,0.00016986,2]
[351410488,1738558053848,-500.0,0.00016986,2]
[351410489,1738558053870,-290.07180557,0.00016986,2]
[351410490,1738558053893,-551.48,0.00016986,2]
[351410491,1738558053916,-259.37727445,0.00016986,2]
[351410492,1738558053939,-287.00379717,0.00016986,2]
[351410493,1738558053969,-500.0,0.00016986,2]
[351410494,1738558053993,-500.0,0.00016986,2]
[351410495,1738558054017,-458.77268455,0.00016986,2]
[351410496,1738558054047,-547.42,0.00016986,2]
[351410497,1738558054071,-6706.79,0.00016986,2]
[351410498,1738558054094,-500.0,0.00016986,2]
[351410499,1738558054119,-500.64,0.00016986,2]
[351410500,1738558054143,-715.91,0.00016986,2]
[351410501,1738558054165,-512.64,0.00016986,2]
[351410502,1738558054189,-882.22,0.00016986,2]
[351410503,1738558054211,-507.28,0.00016986,2]
[351410504,1738558054234,-1403.3,0.00016986,2]
[351410505,1738558054257,-500.0,0.00016986,2]
[351410506,1738558054286,-747.71,0.00016986,2]
[351410507,1738558054309,-656.02,0.00016986,2]
[351410508,1738558054332,-500.0,0.00016986,2]
[351410509,1738558054362,-715.27,0.00016986,2]
[351410510,1738558054385,-500.0,0.00016986,2]
[351410511,1738558054409,-3304.41,0.00016986,2]
[351410512,1738558054432,-2540.24,0.00016986,2]
[351410513,1738558054457,-1444.36,0.00016986,2]
[351410514,1738558054480,-500.0,0.00016986,2]
[351410515,1738558054503,-1493.63,0.00016986,2]
[351410516,1738558054523,-500.0,0.00016986,2]
[351410517,1738558054548,-1791.71,0.00016986,2]
[351410518,1738558054571,-622.36,0.00016986,2]
[351410519,1738558054594,-2841.41,0.00016986,2]
[351410520,1738558054614,-714.88,0.00016986,2]
[351410521,1738558054635,-500.0,0.00016986,2]
[351410522,1738558054656,-564.73,0.00016986,2]
[351410523,1738558054678,-500.0,0.00016986,2]
[351410524,1738558054704,-1705.23,0.00016986,2]
[351410525,1738558054727,-500.0,0.00016986,2]
[351410526,1738558054748,-1005.66,0.00016986,2]
[351410527,1738558054770,-500.0,0.00016986,2]
[351410528,1738558054794,-500.0,0.00016986,2]
[351410529,1738558054815,-500.0,0.00016986,2]
[351410530,1738558054837,-1163.04,0.00016986,2]
[351410531,1738558054860,-500.0,0.00016986,2]
[351410532,1738558054882,-2225.42,0.00016986,2]
[351410533,1738558054903,-500.0,0.00016986,2]
[351410534,1738558054925,-656.9,0.00016986,2]
[351410535,1738558054945,-10000.0,0.00017,2]
[351410536,1738558054966,-10000.0,0.00017,2]
[351410537,1738558054987,-7449.0,0.00017,2]
[351410538,1738558055007,-13257.15227901,0.00017018,2]
[351410539,1738558055033,-708.8305074,0.00017096,2]
[351410540,1738558055055,-562.9902624,0.00017096,2]
[351410541,1738558055076,-706.7832656,0.00017096,2]
[351410542,1738558055097,-184.256,0.000171,2]
[351410543,1738558055118,-500.0,0.00017123,2]
[351410544,1738558055139,-500.0,0.00017123,2]
[351410545,1738558055161,-757.43,0.00017123,2]
[351410546,1738558055182,-500.0,0.00017123,2]
[351410547,1738558055204,-500.0,0.00017123,2]
[351410548,1738558055225,-551.48,0.00017123,2]
[351410549,1738558055247,-500.0,0.00017123,2]
[351410550,1738558055268,-500.0,0.00017123,2]
[351410551,1738558055292,-547.42,0.00017123,2]
[351410552,1738558055314,-6706.79,0.00017123,2]
[351410553,1738558055334,-500.0,0.00017123,2]
[351410554,1738558055356,-500.64,0.00017123,2]
[351410555,1738558055378,-715.91,0.00017123,2]
[351410556,1738558055400,-512.64,0.00017123,2]
[351410557,1738558055421,-882.22,0.00017123,2]
[351410558,1738558055442,-507.28,0.00017123,2]
[351410559,1738558055463,-1403.3,0.00017123,2]
[351410560,1738558055485,-500.0,0.00017123,2]
[351410561,1738558055507,-747.71,0.00017123,2]
[351410562,1738558055532,-656.02,0.00017123,2]
[351410563,1738558055554,-500.0,0.00017123,2]
[351410564,1738558055577,-715.27,0.00017123,2]
[351410565,1738558055598,-500.0,0.00017123,2]
[351410566,1738558055619,-3304.41,0.00017123,2]
[351410567,1738558055640,-2540.24,0.00017123,2]
[351410568,1738558055662,-1444.36,0.00017123,2]
[351410569,1738558055686,-500.0,0.00017123,2]
[351410570,1738558055710,-1493.63,0.00017123,2]
[351410571,1738558055732,-500.0,0.00017123,2]
[351410572,1738558055759,-1791.71,0.00017123,2]
[351410573,1738558055787,-622.36,0.00017123,2]
[351410574,1738558055809,-2841.41,0.00017123,2]
[351410575,1738558055832,-714.88,0.00017123,2]
[351410576,1738558055855,-500.0,0.00017123,2]
[351410577,1738558055877,-564.73,0.00017123,2]
[351410578,1738558055898,-500.0,0.00017123,2]
[351410579,1738558055919,-1705.23,0.00017123,2]
[351410580,1738558055941,-500.0,0.00017123,2]
[351410581,1738558055963,-1005.66,0.00017123,2]
[351410582,1738558055984,-500.0,0.00017123,2]
[351410583,1738558056006,-500.0,0.00017123,2]
[351410584,1738558056030,-500.0,0.00017123,2]
[351410585,1738558056052,-1163.04,0.00017123,2]
[351410586,1738558056075,-500.0,0.00017123,2]
[351410587,1738558056097,-2225.42,0.00017123,2]
[351410588,1738558056118,-500.0,0.00017123,2]
[351410589,1738558056144,-656.9,0.00017123,2]
[351410590,1738558056167,-153.0,0.00017156,2]
[351410591,1738558056189,-153.0,0.00017156,2]
[351410592,1738558056211,-153.0,0.00017156,2]
[351410593,1738558056233,-153.0,0.00017156,2]
[351410594,1738558056255,-153.0,0.00017156,2]
[351410595,1738558056281,-153.0,0.00017156,2]
[351410596,1738558056303,-153.0,0.00017156,2]
[351410597,1738558056328,-153.0,0.00017156,2]
[351410598,1738558056349,-153.0,0.00017156,2]
[351410599,1738558056370,-153.0,0.00017156,2]
[351410600,1738558056391,-153.0,0.00017156,2]
[351410601,1738558056412,-153.0,0.00017156,2]
[351410602,1738558056433,-153.0,0.00017156,2]
[351410603,1738558056454,-153.0,0.00017156,2]
[351410604,1738558056474,-153.0,0.00017156,2]
[351410605,1738558056495,-153.0,0.00017156,2]
[351410606,1738558056517,-153.0,0.00017156,2]
[351410607,1738558056540,-153.0,0.00017156,2]
[351410608,1738558056562,-153.0,0.00017156,2]
[351410609,1738558056583,-153.0,0.00017156,2]
[351410610,1738558056605,-153.0,0.00017156,2]
[351410611,1738558056627,-153.0,0.00017156,2]
[351410612,1738558056648,-153.0,0.00017156,2]
[351410613,1738558056669,-153.0,0.00017156,2]
[351410614,1738558056692,-153.0,0.00017156,2]
[351410615,1738558056714,-153.0,0.00017156,2]
[351410616,1738558056735,-153.0,0.00017156,2]
[351410617,1738558056756,-153.0,0.00017156,2]
[351410618,1738558056788,-153.0,0.00017156,2]
[351410619,1738558056809,-153.0,0.00017156,2]
[351410620,1738558056829,-153.0,0.00017156,2]
[351410621,1738558056981,-153.0,0.00017156,2]
[351410622,1738558057010,-153.0,0.00017156,2]
[351410623,1738558057035,-153.0,0.00017156,2]
[351410624,1738558057056,-153.0,0.00017156,2]
[351410625,1738558057078,-153.0,0.00017156,2]
[351410626,1738558057100,-153.0,0.00017156,2]
[351410627,1738558057122,-153.0,0.00017156,2]
[351410628,1738558057143,-153.0,0.00017156,2]
[351410629,1738558057164,-153.0,0.00017156,2]
[351410630,1738558057185,-153.0,0.00017156,2]
[351410631,1738558057206,-153.0,0.00017156,2]
[351410632,1738558057228,-153.0,0.00017156,2]
[351410633,1738558057249,-153.0,0.00017156,2]
[351410634,1738558057269,-153.0,0.00017156,2]
[351410635,1738558057293,-153.0,0.00017156,2]
[351410636,1738558057314,-153.0,0.00017156,2]
[351410637,1738558057336,-153.0,0.00017156,2]
[351410638,1738558057358,-153.0,0.00017156,2]
[351410639,1738558057379,-153.0,0.00017156,2]
[351410640,1738558057400,-153.0,0.00017156,2]
[351410641,1738558057420,-153.0,0.00017156,2]
[351410642,1738558057441,-153.0,0.00017156,2]
[351410643,1738558057463,-153.0,0.00017156,2]
[351410644,1738558057484,-153.0,0.00017156,2]
[351410645,1738558057506,-153.0,0.00017156,2]
[351410646,1738558057527,-153.0,0.00017156,2]
[351410647,1738558057554,-153.0,0.00017156,2]
[351410648,1738558057576,-153.0,0.00017156,2]
[351410649,1738558057598,-153.0,0.00017156,2]
[351410650,1738558057620,-153.0,0.00017156,2]
[351410651,1738558057642,-153.0,0.00017156,2]
[351410652,1738558057664,-153.0,0.00017156,2]
[351410653,1738558057689,-153.0,0.00017156,2]
[351410654,1738558057711,-153.0,0.00017156,2]
[351410655,1738558057733,-153.0,0.00017156,2]
[351410656,1738558057754,-153.0,0.00017156,2]
[351410657,1738558057776,-153.0,0.00017156,2]
[351410658,1738558057804,-153.0,0.00017156,2]
[351410659,1738558057827,-153.0,0.00017156,2]
[351410660,1738558057848,-153.0,0.00017156,2]
[351410661,1738558057872,-153.0,0.00017156,2]
[351410662,1738558057895,-153.0,0.00017156,2]
[351410663,1738558057916,-153.0,0.00017156,2]
[351410664,1738558057937,-153.0,0.00017156,2]
[351410665,1738558057960,-153.0,0.00017156,2]
[351410666,1738558057981,-153.0,0.00017156,2]
[351410667,1738558058003,-153.0,0.00017156,2]
[351410668,1738558058024,-153.0,0.00017156,2]
[351410669,1738558058048,-153.0,0.00017156,2]
[351410670,1738558058069,-153.0,0.00017156,2]
[351410671,1738558058090,-153.0,0.00017156,2]
[351410672,1738558058110,-153.0,0.00017156,2]
[351410673,1738558058131,-153.0,0.00017156,2]
[351410674,1738558058152,-153.0,0.00017156,2]
[351410675,1738558058172,-153.0,0.00017156,2]
[351410676,1738558058193,-153.0,0.00017156,2]
[351410677,1738558058213,-153.0,0.00017156,2]
[351410678,1738558058233,-153.0,0.00017156,2]
[351410679,1738558058253,-153.0,0.00017156,2]
[351410680,1738558058274,-153.0,0.00017156,2]
[351410681,1738558058296,-153.0,0.00017156,2]
[351410682,1738558058317,-153.0,0.00017156,2]
[351410683,1738558058337,-153.0,0.00017156,2]
[351410684,1738558058357,-153.0,0.00017156,2]
[351410685,1738558058378,-153.0,0.00017156,2]
[351410686,1738558058398,-153.0,0.00017156,2]
[351410687,1738558058419,-153.0,0.00017156,2]
[351410688,1738558058439,-153.0,0.00017156,2]
[351410689,1738558058459,-153.0,0.00017156,2]
[351410690,1738558058480,-153.0,0.00017156,2]
[351410691,1738558058501,-153.0,0.00017156,2]
[351410692,1738558058522,-153.0,0.00017156,2]
[351410693,1738558058548,-153.0,0.00017156,2]
[351410694,1738558058571,-153.0,0.00017156,2]
[351410695,1738558058593,-153.0,0.00017156,2]
[351410696,1738558058616,-153.0,0.00017156,2]
[351410697,1738558058637,-153.0,0.00017156,2]
[351410698,1738558058658,-153.0,0.00017156,2]
[351410699,1738558058678,-153.0,0.00017156,2]
[351410700,1738558058701,-153.0,0.00017156,2]
[351410701,1738558058722,-153.0,0.00017156,2]
[351410702,1738558058743,-153.0,0.00017156,2]
[351410703,1738558058763,-153.0,0.00017156,2]
[351410704,1738558058789,-153.0,0.00017156,2]
[351410705,1738558058810,-153.0,0.00017156,2]
[351410706,1738558058832,-153.0,0.00017156,2]
[351410707,1738558058853,-153.0,0.00017156,2]
[351410708,1738558058874,-153.0,0.00017156,2]
[351410709,1738558058895,-153.0,0.00017156,2]
[351410710,1738558058915,-153.0,0.00017156,2]
[351410711,1738558058936,-153.0,0.00017156,2]
[351410712,1738558058956,-153.0,0.00017156,2]
[351410713,1738558058977,-153.0,0.00017156,2]
[351410714,1738558058998,-153.0,0.00017156,2]
[351410715,1738558059019,-153.0,0.00017156,2]
[351410716,1738558059042,-153.0,0.00017156,2]
[351410717,1738558059063,-153.0,0.00017156,2]
[351410718,1738558059085,-153.0,0.00017156,2]
[351410719,1738558059106,-153.0,0.00017156,2]
[351410720,1738558059132,-153.0,0.00017156,2]
[351410721,1738558059154,-153.0,0.00017156,2]
[351410722,1738558059176,-153.0,0.00017156,2]
[351410723,1738558059197,-153.0,0.00017156,2]
[351410724,1738558059217,-153.0,0.00017156,2]
[351410725,1738558059243,-354.5475049,0.000172,2]
[351410726,1738558059263,-354.5475049,0.000172,2]
[351410727,1738558059287,-354.5475049,0.000172,2]
[351410728,1738558059309,-354.5475049,0.000172,2]
[351410729,1738558059330,-505.06540949,0.0001726,2]
[351410730,1738558059350,-500.0,0.0001726,2]
[351410731,1738558059371,-757.43,0.0001726,2]
[351410732,1738558059391,-500.0,0.0001726,2]
[351410733,1738558059412,-209.4,0.0001726,2]
[351410734,1738558059432,-551.48,0.0001726,2]
[351410735,1738558059452,-500.0,0.0001726,2]
[351410736,1738558059475,-500.0,0.0001726,2]
[351410737,1738558059496,-547.42,0.0001726,2]
[351410738,1738558059517,-6706.79,0.0001726,2]
[351410739,1738558059541,-500.0,0.0001726,2]
[351410740,1738558059561,-500.64,0.0001726,2]
[351410741,1738558059583,-715.91,0.0001726,2]
[351410742,1738558059603,-512.64,0.0001726,2]
[351410743,1738558059624,-882.22,0.0001726,2]
[351410744,1738558059644,-507.28,0.0001726,2]
[351410745,1738558059667,-1403.3,0.0001726,2]
[351410746,1738558059690,-500.0,0.0001726,2]
[351410747,1738558059712,-747.71,0.0001726,2]
[351410748,1738558059733,-656.02,0.0001726,2]
[351410749,1738558059754,-500.0,0.0001726,2]
[351410750,1738558059776,-715.27,0.0001726,2]
[351410751,1738558059800,-261.23367743,0.0001726,2]
[351410752,1738558059823,-3304.41,0.0001726,2]
[351410753,1738558059843,-2540.24,0.0001726,2]
[351410754,1738558059865,-1444.36,0.0001726,2]
[351410755,1738558059887,-500.0,0.0001726,2]
[351410756,1738558059909,-1493.63,0.0001726,2]
[351410757,1738558059930,-500.0,0.0001726,2]
[351410758,1738558059952,-1791.71,0.0001726,2]
[351410759,1738558059974,-622.36,0.0001726,2]
[351410760,1738558059996,-2841.41,0.0001726,2]
[351410761,1738558060019,-714.88,0.0001726,2]
[351410762,1738558060043,-500.0,0.0001726,2]
[351410763,1738558060064,-564.73,0.0001726,2]
[351410764,1738558060086,-500.0,0.0001726,2]
[351410765,1738558060108,-1705.23,0.0001726,2]
[351410766,1738558060131,-500.0,0.0001726,2]
[351410767,1738558060153,-1005.66,0.0001726,2]
[351410768,1738558060175,-500.0,0.0001726,2]
[351410769,1738558060197,-500.0,0.0001726,2]
[351410770,1738558060220,-500.0,0.0001726,2]
[351410771,1738558060243,-1163.04,0.0001726,2]
[351410772,1738558060265,-500.0,0.0001726,2]
[351410773,1738558060294,-2225.42,0.0001726,2]
[351410774,1738558060316,-500.0,0.0001726,2]
[351410775,1738558060339,-656.9,0.0001726,2]
[351410776,1738558060360,-500.66895834,0.0001726,2]
[351410777,1738558060382,-601.2699626,0.0001728,2]
[351410778,1738558060419,-646.617,0.00017337,2]
[351410779,1738558060446,-500.0,0.00017397,2]
[351410780,1738558060469,-757.43,0.00017397,2]
[351410781,1738558060492,-500.0,0.00017397,2]
[351410782,1738558060528,-551.48,0.00017397,2]
[351410783,1738558060558,-250.04938095,0.00017397,2]
[351410784,1738558060582,-500.0,0.00017397,2]
[351410785,1738558060607,-547.42,0.00017397,2]
[351410786,1738558060799,-6706.79,0.00017397,2]
[351410787,1738558060824,-500.0,0.00017397,2]
[351410788,1738558060848,-500.64,0.00017397,2]
[351410789,1738558060872,-715.91,0.00017397,2]
[351410790,1738558060897,-512.64,0.00017397,2]
[351410791,1738558060920,-882.22,0.00017397,2]
[351410792,1738558060942,-507.28,0.00017397,2]
[351410793,1738558060966,-1403.3,0.00017397,2]
[351410794,1738558060989,-500.0,0.00017397,2]
[351410795,1738558061011,-747.71,0.00017397,2]
[351410796,1738558061038,-656.02,0.00017397,2]
[351410797,1738558061060,-500.0,0.00017397,2]
[351410798,1738558061085,-715.27,0.00017397,2]
[351410799,1738558061109,-3304.41,0.00017397,2]
[351410800,1738558061138,-2540.24,0.00017397,2]
[351410801,1738558061163,-1444.36,0.00017397,2]
[351410802,1738558061187,-500.0,0.00017397,2]
[351410803,1738558061214,-1493.63,0.00017397,2]
[351410804,1738558061238,-500.0,0.00017397,2]
[351410805,1738558061263,-1791.71,0.00017397,2]
[351410806,1738558061295,-622.36,0.00017397,2]
[351410807,1738558061319,-2841.41,0.00017397,2]
[351410808,1738558061342,-714.88,0.00017397,2]
[351410809,1738558061365,-500.0,0.00017397,2]
[351410810,1738558061387,-564.73,0.00017397,2]
[351410811,1738558061410,-500.0,0.00017397,2]
[351410812,1738558061434,-1705.23,0.00017397,2]
[351410813,1738558061458,-500.0,0.00017397,2]
[351410814,1738558061483,-1005.66,0.00017397,2]
[351410815,1738558061507,-500.0,0.00017397,2]
[351410816,1738558061535,-500.0,0.00017397,2]
[351410817,1738558061561,-500.0,0.00017397,2]
[351410818,1738558061587,-1163.04,0.00017397,2]
[351410819,1738558061611,-500.0,0.00017397,2]
[351410820,1738558061637,-2225.42,0.00017397,2]
[351410821,1738558061661,-500.0,0.00017397,2]
[351410822,1738558061689,-656.9,0.00017397,2]
[351410823,1738558061713,-160.0,0.00017472,3]
[351410824,1738558061739,-5589.48374575,0.000175,2]
[351410825,1738558061764,-396.0,0.00017507,2]
[351410826,1738558061796,-262.867,0.00017507,2]
[351410827,1738558061822,-2039.0,0.00017507,2]
[351410828,1738558061847,-540.569,0.00017507,2]
[351410829,1738558061873,-2300.0,0.00017507,2]
[351410830,1738558061899,-500.0,0.00017534,2]
[351410831,1738558061928,-757.43,0.00017534,2]
[351410832,1738558061956,-500.0,0.00017534,2]
[351410833,1738558061981,-551.48,0.00017534,2]
[351410834,1738558062006,-500.0,0.00017534,2]
[351410835,1738558062036,-547.42,0.00017534,2]
[351410836,1738558062065,-6706.79,0.00017534,2]
[351410837,1738558062091,-206.97968922,0.00017534,2]
[351410838,1738558062118,-500.64,0.00017534,2]
[351410839,1738558062145,-715.91,0.00017534,2]
[351410840,1738558062179,-512.64,0.00017534,2]
[351410841,1738558062208,-882.22,0.00017534,2]
[351410842,1738558062235,-507.28,0.00017534,2]
[351410843,1738558062263,-1403.3,0.00017534,2]
[351410844,1738558062298,-500.0,0.00017534,2]
[351410845,1738558062326,-747.71,0.00017534,2]
[351410846,1738558062354,-656.02,0.00017534,2]
[351410847,1738558062380,-500.0,0.00017534,2]
[351410848,1738558062408,-715.27,0.00017534,2]
[351410849,1738558062436,-3304.41,0.00017534,2]
[351410850,1738558062460,-2540.24,0.00017534,2]
[351410851,1738558062488,-1444.36,0.00017534,2]
[351410852,1738558062513,-500.0,0.00017534,2]
[351410853,1738558062543,-1493.63,0.00017534,2]
[351410854,1738558062570,-500.0,0.00017534,2]
[351410855,1738558062596,-1791.71,0.00017534,2]
[351410856,1738558062624,-622.36,0.00017534,2]
[351410857,1738558062651,-2841.41,0.00017534,2]
[351410858,1738558062678,-714.88,0.00017534,2]
[351410859,1738558062710,-500.0,0.00017534,2]
[351410860,1738558062738,-564.73,0.00017534,2]
[351410861,1738558062764,-500.0,0.00017534,2]
[351410862,1738558062798,-1705.23,0.00017534,2]
[351410863,1738558062822,-500.0,0.00017534,2]
[351410864,1738558062848,-1005.66,0.00017534,2]
[351410865,1738558062871,-500.0,0.00017534,2]
[351410866,1738558062896,-500.0,0.00017534,2]
[351410867,1738558062922,-500.0,0.00017534,2]
[351410868,1738558062947,-1163.04,0.00017534,2]
[351410869,1738558062971,-500.0,0.00017534,2]
[351410870,1738558062996,-2225.42,0.00017534,2]
[351410871,1738558063021,-500.0,0.00017534,2]
[351410872,1738558063051,-656.9,0.00017534,2]
[351410873,1738558063075,-278.0,0.0001759,2]
[351410874,1738558063100,-152.02,0.00017614,2]
[351410875,1738558063124,-154.0,0.00017652,2]
[351410876,1738558063147,-154.0,0.00017652,2]
[351410877,1738558063172,-154.0,0.00017652,2]
[351410878,1738558063198,-154.0,0.00017652,2]
[351410879,1738558063222,-154.0,0.00017652,2]
[351410880,1738558063246,-154.0,0.00017652,2]
[351410881,1738558063269,-154.0,0.00017652,2]
[351410882,1738558063298,-154.0,0.00017652,2]
[351410883,1738558063323,-154.0,0.00017652,2]
[351410884,1738558063348,-154.0,0.00017652,2]
[351410885,1738558063372,-154.0,0.00017652,2]
[351410886,1738558063400,-154.0,0.00017652,2]
[351410887,1738558063422,-154.0,0.00017652,2]
[351410888,1738558063445,-162.0,0.00017652,2]
[351410889,1738558063467,-158.1,0.0001766,2]
[351410890,1738558063490,-500.0,0.00017671,2]
[351410891,1738558063513,-757.43,0.00017671,2]
[351410892,1738558063542,-500.0,0.00017671,2]
[351410893,1738558063566,-551.48,0.00017671,2]
[351410894,1738558063589,-500.0,0.00017671,2]
[351410895,1738558063613,-547.42,0.00017671,2]
[351410896,1738558063637,-6706.79,0.00017671,2]
[351410897,1738558063659,-500.64,0.00017671,2]